bitfinex/quotes_ETHUSD_20250213
["timestamp","ask_amount","ask_price","bid_price","bid_amount"]
[1739471594936,0.11932244,2636.3,2635.7,0.7676]
[1739471595117,0.0075,2636.5,2635.7,0.7676]
[1739471595472,0.0075,2636.5,2635.7,3.7676]
[1739471595473,3.79357,2636.1,2635.7,3.7676]
[1739471595641,3.7938,2635.9,2635.5,3.79434]
[1739471595964,3.7938,2635.9,2635.4,7.57092]
[1739471596270,0.1192815,2635.8,2635.5,3.7943]
[1739471596684,3.79378,2635.9,2635.5,3.7943]
[1739471596887,0.1192815,2635.7,2635.6,3.7942]
[1739471597189,3.794,2635.8,2635.3,3.79454]
[1739471597355,0.7963,2635.6,2635.1,3.0]
[1739471597541,0.7963,2635.6,2634.9,0.7949]
[1739471597741,0.11886385,2635.5,2635.3,3.0]
[1739471597944,3.79401,2635.8,2635.3,3.79463]
[1739471598243,3.91294385,2635.7,2635.0,3.0]
[1739471598440,3.79426,2635.6,2635.2,3.0]
[1739471598771,0.11886385,2635.5,2635.4,6.79438]
[1739471598974,2.7546,2635.9,2635.2,3.0]
[1739471598975,3.79408,2635.7,2635.2,3.0]
[1739471599290,0.11886385,2635.5,2635.1,3.0]
[1739471599486,3.79435,2635.5,2635.1,3.0]
[1739471599691,0.11886385,2635.4,2635.1,6.7949]
[1739471599847,3.79466,2635.3,2634.9,0.7949]
[1739471600050,3.79466,2635.3,2634.8,3.79527]
[1739471600264,3.91372385,2635.2,2634.7,4.54959]
[1739471600512,3.79502,2635.1,2634.7,0.7541]
[1739471600805,0.11848701,2635.0,2634.5,3.79569]
[1739471600970,2.0,2635.0,2634.8,3.0]
[1739471601155,2.0,2635.0,2634.7,3.79548]
[1739471601156,0.118192,2634.9,2634.7,3.0]
[1739471601359,0.118192,2634.9,2634.7,6.79547]
[1739471601693,0.7546,2635.4,2634.9,3.79516]
[1739471601859,1.588924,2635.4,2635.0,3.795]
[1739471602294,0.05493635,2635.3,2634.2,0.8028]
[1739471602461,3.79572,2634.6,2634.2,0.8028]
[1739471602811,7.59148,2634.6,2634.2,3.0]
[1739471605163,0.0075,2635.3,2635.0,3.79506]
[1739471605357,0.8191,2635.4,2635.0,3.79506]
[1739471605604,4.61359,2635.4,2634.9,3.79519]
[1739471605908,3.7948,2635.2,2634.7,3.0]
[1739471606203,3.79479,2635.2,2634.7,6.79545]
[1739471606503,3.79479,2635.2,2634.7,3.0]
[1739471606713,3.79479,2635.2,2634.8,3.79535]
[1739471606911,4.61373,2635.4,2634.9,3.79512]
[1739471607067,0.8191,2635.4,2634.9,3.79521]
[1739471607404,3.7947,2635.3,2634.8,3.79533]
[1739471607965,0.8191,2635.4,2634.9,3.79508]
[1739471608289,0.8191,2635.4,2635.0,3.79506]
[1739471608290,0.11817561,2635.3,2635.0,3.79506]
[1739471610165,0.11817561,2635.3,2635.0,3.79495]
[1739471610408,0.11817561,2635.3,2635.1,3.79478]
[1739471610612,0.11817561,2635.3,2635.2,3.79477]
[1739471610764,5.32,2635.5,2635.1,3.79491]
[1739471610965,0.11755293,2635.4,2635.1,3.79491]
[1739471611837,0.11755293,2635.4,2635.1,3.79485]
[1739471612229,0.11755293,2635.4,2635.2,3.79477]
[1739471612894,0.11755293,2635.4,2635.3,3.79463]
[1739471613090,0.11755293,2635.4,2635.3,4.55357]
[1739471614239,3.80137,2635.9,2635.3,0.75894]
[1739471614535,0.11755293,2635.4,2635.2,3.79471]
[1739471614685,3.79411,2635.7,2635.3,3.79461]
[1739471614890,3.79054546,2635.7,2635.3,3.79461]
[1739471615328,3.80134,2635.9,2635.0,0.7671]
[1739471615499,0.0075,2635.9,2635.6,3.7942]
[1739471615714,0.7672,2636.0,2635.8,3.79391]
[1739471615903,5.32,2636.1,2635.7,3.79402]
[1739471616457,5.32,2636.1,2635.6,0.37942]
[1739471616458,3.79371,2636.0,2635.6,0.37942]
[1739471616650,3.79371,2636.0,2635.4,3.79437]
[1739471616651,3.79371,2636.0,2635.5,3.79433]
[1739471616817,3.79371,2636.0,2635.4,3.79437]
[1739471617003,3.7938,2635.9,2635.7,3.0]
[1739471617199,5.32,2636.1,2635.7,3.0]
[1739471617404,9.11354,2636.1,2635.7,3.0]
[1739471617604,5.32,2636.1,2635.7,6.79392]
[1739471617847,3.79369,2636.0,2635.6,3.0]
[1739471617995,5.80121,2636.0,2635.6,3.0]
[1739471618198,3.79377,2635.9,2635.6,3.0]
[1739471618544,3.79383,2635.9,2635.6,3.0]
[1739471619047,3.79405,2635.7,2635.2,3.79471]
[1739471619249,3.79405,2635.7,2635.2,3.79467]
[1739471619553,3.79413,2635.7,2635.2,3.79469]
[1739471620043,3.79413,2635.7,2635.3,3.0]
[1739471620254,0.7756,2635.8,2635.4,3.79449]
[1739471620540,0.7756,2635.8,2635.5,3.79428]
[1739471620752,6.1508,2636.1,2635.5,0.758877]
[1739471621056,6.1508,2636.1,2635.7,3.79405]
[1739471621342,5.32,2636.1,2636.0,3.79362]
[1739471621559,5.3275,2636.3,2636.0,3.79362]
[1739471621752,0.0075,2636.2,2635.9,3.79375]
[1739471622617,2.0075,2636.2,2635.7,3.79394]
[1739471622832,4.57802,2636.0,2635.6,6.79419]
[1739471623018,0.7844,2636.0,2635.6,6.79419]
[1739471623236,0.11783451,2635.9,2635.6,6.79413]
[1739471623743,0.11783451,2635.9,2635.7,3.79403]
[1739471623955,0.11783451,2635.9,2635.6,6.79413]
[1739471624107,0.11783451,2635.9,2635.8,3.79391]
[1739471624660,0.7844,2636.3,2635.9,3.7937]
[1739471624949,0.7844,2636.3,2636.0,3.7936]
[1739471625156,0.7844,2636.3,2635.9,3.7937]
[1739471625354,0.7844,2636.3,2635.5,3.0]
[1739471625355,3.79386,2635.9,2635.5,3.0]
[1739471625555,3.84099773,2636.1,2635.2,4.61266]
[1739471625733,4.284,2636.2,2635.7,3.0]
[1739471625920,4.284,2636.2,2635.8,3.79389]
[1739471626122,8.07739,2636.2,2635.7,6.79395]
[1739471626680,3.79349,2636.1,2635.7,3.0]
[1739471626837,3.79379,2635.9,2635.4,3.79439]
[1739471627042,3.84121431,2635.9,2635.4,3.79439]
[1739471627356,0.7567,2635.8,2635.3,3.7945]
[1739471627557,0.7567,2635.8,2635.4,3.79442]
[1739471627760,3.79437,2635.5,2635.0,3.79502]
[1739471627903,3.7945,2635.4,2634.9,0.7932]
[1739471628103,3.7945,2635.4,2635.0,3.79505]
[1739471628358,3.79435,2635.5,2635.1,3.0]
[1739471629008,3.79434,2635.5,2635.1,3.0]
[1739471629209,3.79462,2635.4,2635.1,3.0]
[1739471629435,3.79462,2635.4,2635.0,3.0]
[1739471629957,4.59269,2635.4,2634.9,3.0]
[1739471630101,0.04743311,2635.3,2634.7,3.79548]
[1739471630306,7.58973,2635.2,2634.8,3.0]
[1739471630538,3.79485,2635.2,2634.8,3.0]
[1739471631251,0.04743821,2635.3,2634.9,3.7952]
[1739471631252,3.79463,2635.3,2634.9,3.7952]
[1739471631568,1.177662,2635.4,2635.1,3.0]
[1739471631956,0.379462,2635.4,2635.3,3.79463]
[1739471632158,0.7689,2635.6,2635.3,3.79463]
[1739471632788,0.7689,2635.6,2635.3,3.79455]
[1739471632955,0.7689,2635.6,2635.3,7.5891]
[1739471633158,0.7689,2635.6,2635.3,3.79455]
[1739471633858,8.88836,2635.9,2635.3,3.79454]
[1739471634082,0.9696109,2635.8,2635.4,3.79442]
[1739471634379,0.0075,2635.7,2635.4,3.7944]
[1739471634582,0.0075,2635.7,2635.3,3.79452]
[1739471634791,3.79112247,2635.5,2635.1,0.8309]
[1739471634986,3.7947,2635.3,2634.8,4.59065]
[1739471635135,3.7947,2635.3,2634.8,7.59065]
[1739471635336,3.84224816,2635.2,2634.8,6.79535]
[1739471635554,0.7928,2635.4,2634.9,3.0]
[1739471635555,4.58738,2635.4,2634.9,3.0]
[1739471635750,0.887138,2635.3,2634.8,3.79535]
[1739471635987,3.84222885,2635.2,2634.9,3.0]
[1739471636187,3.84222889,2635.2,2634.9,3.0]
[1739471636390,0.7928,2634.8,2634.4,3.79591]
[1739471636538,3.79565,2634.6,2634.2,3.79619]
[1739471636740,0.04744719,2634.7,2634.3,3.79603]
[1739471636942,4.58824,2634.8,2634.4,3.0]
[1739471637585,0.7928,2634.8,2634.4,3.0]
[1739471637793,8.449,2635.1,2634.7,3.79549]
[1739471638006,6.1575,2635.1,2634.2,3.0]
[1739471638208,6.1575,2635.1,2634.4,3.79583]
[1739471638209,0.11790826,2635.0,2634.4,3.79583]
[1739471638509,3.79528,2634.9,2634.3,3.79607]
[1739471638681,3.79528,2634.9,2634.2,6.79609]
[1739471638682,3.79528,2634.9,2634.4,3.7959]
[1739471639174,1.25447955,2635.0,2634.4,3.7959]
[1739471639365,0.11790826,2634.8,2634.2,6.7961]
[1739471639566,3.79537,2634.8,2634.3,3.79606]
[1739471639811,0.11790826,2634.7,2634.3,3.79606]
[1739471640164,3.79537,2634.8,2634.3,3.79606]
[1739471640416,0.7567,2634.8,2634.3,3.79604]
[1739471640589,0.11790826,2634.7,2634.3,0.7986]
[1739471640908,2.04744515,2634.6,2634.2,3.0]
[1739471641057,2.16487799,2634.6,2634.2,3.0]
[1739471641259,2.7567,2634.3,2633.7,0.7986]
[1739471641514,2.0,2634.0,2633.4,0.7986]
[1739471641658,5.7965,2634.0,2633.6,3.0]
[1739471642216,0.11733445,2633.9,2633.8,6.79671]
[1739471642364,4.45e-06,2633.9,2633.8,7.59051]
[1739471642564,0.1131441,2633.9,2633.8,7.59051]
[1739471642769,5.32,2634.3,2634.2,3.79621]
[1739471643013,5.32,2634.3,2634.2,6.79621]
[1739471643221,6.1525,2634.8,2634.2,4.438905]
[1739471643366,5.32,2634.8,2634.7,6.79549]
[1739471643562,2.0,2635.3,2634.7,6.79549]
[1739471643563,5.32,2635.2,2634.7,3.0]
[1739471643878,5.32,2635.2,2634.8,3.79526]
[1739471644102,5.32,2635.2,2634.7,6.79548]
[1739471644320,5.32,2635.2,2634.9,3.7952]
[1739471644611,5.32,2635.5,2635.3,3.79461]
[1739471644780,5.32,2635.5,2635.1,3.79491]
[1739471644781,8.1397,2635.6,2635.1,3.79485]
[1739471644984,8.1397,2635.6,2635.3,3.79463]
[1739471645218,8.1397,2635.6,2635.3,3.79455]
[1739471645511,6.1322,2635.6,2635.2,6.79475]
[1739471645712,6.1322,2635.6,2635.0,3.0]
[1739471645870,6.1322,2635.6,2635.2,7.58943]
[1739471646071,5.32,2635.6,2635.1,0.679521]
[1739471646267,7.32,2635.9,2635.5,3.0]
[1739471646467,5.32,2635.9,2635.7,3.79404]
[1739471647666,5.32,2635.9,2635.7,3.79393]
[1739471647870,5.32,2635.9,2635.5,6.79427]
[1739471648069,5.84892459,2635.8,2635.1,3.79489]
[1739471648265,5.84891459,2635.8,2635.3,3.7946]
[1739471648570,0.8379,2635.6,2635.1,3.7948]
[1739471648776,2.0,2635.5,2634.9,3.79516]
[1739471649007,0.81579,2635.4,2634.9,3.79512]
[1739471649295,0.81579,2635.4,2635.0,3.0]
[1739471649477,0.81579,2635.4,2635.0,6.79498]
[1739471649827,0.81579,2635.4,2635.0,3.0]
[1739471650025,0.11326694,2635.3,2635.1,3.79491]
[1739471650325,0.11326694,2635.3,2635.2,6.79477]
[1739471650628,6.1504,2635.6,2635.2,3.0]
[1739471650789,0.12076694,2635.3,2635.2,3.0]
[1739471650994,0.12076694,2635.3,2634.9,3.79514]
[1739471650995,0.12076694,2635.3,2634.7,7.59082]
[1739471651180,0.04743988,2635.2,2634.6,3.79559]
[1739471651520,3.79514,2635.0,2634.5,4.57621]
[1739471651883,0.11393094,2634.9,2634.5,8.37187]
[1739471652207,0.11393094,2634.9,2634.8,3.0]
[1739471652388,0.11393094,2634.9,2634.8,6.79535]
[1739471652589,0.8309,2635.1,2634.8,6.79535]
[1739471652780,0.11374244,2634.9,2634.8,6.79535]
[1739471652978,5.3275,2635.3,2634.9,3.79518]
[1739471653180,6.902232,2635.3,2634.9,7.59036]
[1739471653412,0.11374244,2635.2,2634.9,3.79518]
[1739471653808,6.902232,2635.3,2634.9,3.79518]
[1739471654437,0.11374244,2635.2,2635.0,3.79506]
[1739471654629,0.11374244,2635.2,2635.0,3.79502]
[1739471654794,5.3275,2635.3,2634.8,3.0]
[1739471655130,5.3275,2635.3,2634.9,3.79521]
[1739471655425,3.90852244,2635.2,2634.7,3.0]
[1739471655636,0.04743985,2635.1,2634.7,3.0]
[1739471655858,4.62604,2635.0,2634.6,3.0]
[1739471655978,0.8309,2635.0,2634.6,3.0]
[1739471656312,0.8309,2635.0,2634.7,3.0]
[1739471656766,0.8309,2635.0,2634.7,3.79541]
[1739471656936,0.8309,2635.0,2634.7,7.59082]
[1739471657129,0.8309,2635.0,2634.6,3.79563]
[1739471657430,2.2008939,2635.0,2634.7,3.0]
[1739471658190,2.2008939,2635.0,2634.6,3.0]
[1739471658427,2.2008939,2635.0,2633.9,0.8299]
[1739471658428,0.8035,2634.8,2633.9,0.8299]
[1739471658604,0.8035,2634.8,2633.6,5.45966743]
[1739471658605,0.762,2634.3,2633.6,1.972083]
[1739471658939,0.762,2634.3,2634.1,3.0]
[1739471659235,2.762,2634.6,2634.4,3.79581]
[1739471659932,6.55771,2634.6,2634.1,6.79634]
[1739471660287,2.762,2634.6,2634.1,3.0]
[1739471660638,2.0,2634.6,2634.5,3.79578]
[1739471661502,5.32,2634.8,2634.1,3.37751]
[1739471661686,5.32,2634.8,2634.7,3.79549]
[1739471662339,5.32,2634.8,2634.7,6.79549]
[1739471663943,5.32,2635.3,2635.1,3.79492]
[1739471664274,6.1115,2635.5,2635.2,3.0]
[1739471665538,6.1115,2635.5,2635.2,3.79469]
[1739471665770,5.32,2635.5,2635.3,3.79453]
[1739471665884,5.32,2635.5,2635.4,3.79449]
[1739471667024,5.32,2635.5,2635.2,6.79464]
[1739471667288,5.32,2635.5,2635.2,3.0]
[1739471667829,9.11441,2635.5,2635.0,0.8318]
[1739471668015,9.11441,2635.5,2635.0,1.594489]
[1739471668241,9.11441,2635.5,2635.1,3.0]
[1739471668431,0.11333276,2635.4,2635.1,3.0]
[1739471668820,0.11333276,2635.4,2634.7,1.059111]
[1739471668821,3.79485,2635.2,2634.7,4.854471]
[1739471669018,3.79509,2635.0,2634.3,4.60681]
[1739471669360,3.7953,2634.9,2634.4,3.79588]
[1739471669669,3.79542,2634.8,2634.3,3.79607]
[1739471669835,3.90865734,2634.9,2634.0,4.59856]
[1739471670041,2.0,2635.0,2634.0,4.59856]
[1739471670042,0.11339831,2634.8,2634.6,3.79552]
[1739471670433,0.7557,2635.1,2634.7,3.79542]
[1739471670713,0.7557,2635.1,2634.7,3.79541]
[1739471671769,3.79535,2634.8,2634.3,3.79598]
[1739471671991,3.79535,2634.8,2634.4,3.0]
[1739471672470,3.79535,2634.8,2634.4,3.79589]
[1739471672615,3.79535,2634.8,2634.5,3.0]
[1739471673141,3.79514,2635.0,2634.5,6.79572]
[1739471673565,0.7557,2635.1,2634.7,3.7954]
[1739471673860,0.7557,2635.1,2634.4,3.8067]
[1739471674029,4.55064,2635.1,2634.6,3.0]
[1739471674229,4.55064,2635.1,2634.5,4.17635]
[1739471674534,3.7951,2635.0,2634.5,4.17635]
[1739471674730,4.55064,2635.1,2634.7,3.0]
[1739471674731,4.55069,2635.1,2634.7,3.0]
[1739471675043,4.55063,2635.1,2634.7,3.79535]
[1739471675248,3.79508,2635.0,2634.6,3.0]
[1739471675429,0.7557,2635.1,2634.7,3.79549]
[1739471676017,7.59025,2635.0,2634.6,3.0]
[1739471676222,3.79528,2634.9,2634.5,0.38067]
[1739471676430,3.79524,2634.9,2634.4,3.0]
[1739471676679,4.55071,2635.1,2634.6,3.0]
[1739471676859,2.284,2635.0,2634.6,6.79563]
[1739471677044,4.55071,2635.1,2634.7,3.79543]
[1739471677045,0.7557,2635.1,2634.7,3.79543]
[1739471677253,0.7557,2635.1,2634.8,3.79534]
[1739471677492,4.56493,2635.3,2634.8,3.79534]
[1739471677963,3.79484,2635.2,2634.7,4.62273]
[1739471678174,0.7703,2635.3,2635.0,3.79498]
[1739471678346,3.79489,2635.2,2634.7,5.764562]
[1739471679513,4.56495,2635.3,2634.8,3.7953]
[1739471679779,4.56495,2635.3,2635.0,3.795]
[1739471679780,0.7703,2635.3,2635.0,3.795]
[1739471679948,0.7703,2635.3,2634.9,3.7952]
[1739471680155,12.21025,2635.5,2635.0,3.79498]
[1739471680368,12.21025,2635.5,2635.0,3.79503]
[1739471680369,17.805918,2635.5,2635.0,3.79503]
[1739471680575,3.79451,2635.4,2635.0,3.79503]
[1739471681299,3.79451,2635.4,2634.8,3.79528]
[1739471681601,3.79449,2635.4,2635.0,3.79505]
[1739471681962,3.79458,2635.4,2635.0,3.79495]
[1739471682158,14.011408,2635.5,2634.9,3.0]
[1739471682509,6.1243,2635.5,2635.1,3.0]
[1739471682808,3.7945,2635.4,2635.1,3.0]
[1739471683010,6.1243,2635.5,2635.1,3.0]
[1739471683210,5.32,2635.5,2635.3,3.79455]
[1739471683715,0.11302132,2635.4,2635.3,3.79455]
[1739471684060,0.11302132,2635.4,2635.2,4.59264]
[1739471684412,0.11302132,2635.4,2635.1,3.0]
[1739471684617,3.90754132,2635.4,2635.1,3.0]
[1739471684914,0.11302132,2635.4,2635.1,6.79492]
[1739471685864,3.79467,2635.3,2635.1,3.0]
[1739471686165,0.8307,2635.3,2634.9,6.79507]
[1739471686364,0.8307,2635.3,2634.5,0.7979]
[1739471686365,0.11302132,2635.2,2634.5,0.7979]
[1739471686616,3.79528,2634.9,2634.6,0.459371]
[1739471686764,3.79509,2635.0,2634.6,0.459371]
[1739471686980,0.11350487,2634.8,2634.7,3.79549]
[1739471687212,4.62543,2635.3,2634.8,3.0]
[1739471687410,4.62543,2635.3,2634.9,3.7952]
[1739471687613,0.04743793,2635.2,2634.6,6.79564]
[1739471687761,3.79506,2635.1,2634.6,3.0]
[1739471687959,6.07906,2635.1,2634.5,0.7979]
[1739471688159,3.79507,2635.0,2634.5,0.7979]
[1739471688716,3.79507,2635.0,2634.5,4.59366]
[1739471689007,9.11506,2635.0,2634.5,4.59366]
[1739471689515,4.54972,2634.8,2634.3,3.79596]
[1739471689691,3.79551,2634.7,2634.3,3.79596]
[1739471689900,4.54972,2634.8,2634.4,3.0]
[1739471690077,4.54972,2634.8,2634.4,6.79592]
[1739471690276,4.54972,2634.8,2634.4,3.0]
[1739471690671,0.7543,2634.8,2634.4,3.0]
[1739471691016,0.7543,2634.8,2634.5,3.79571]
[1739471691328,6.1039,2635.0,2634.8,3.79523]
[1739471691501,5.32,2635.0,2634.7,6.79548]
[1739471691827,9.11512,2635.0,2634.6,3.0]
[1739471692030,5.32,2635.0,2634.9,3.79521]
[1739471692322,0.7839,2635.4,2635.1,3.79482]
[1739471692670,2.0,2635.8,2635.1,3.79482]
[1739471692671,0.7839,2635.7,2635.1,3.79492]
[1739471692870,0.7839,2635.7,2635.3,3.79461]
[1739471693072,0.7839,2635.7,2635.2,3.0]
[1739471693073,3.79437,2635.5,2635.2,3.0]
[1739471693296,3.79452,2635.4,2635.0,0.7635]
[1739471693527,3.79434,2635.5,2635.0,8.0525963]
[1739471693734,4.57806,2635.7,2635.2,3.0]
[1739471693933,4.57806,2635.7,2635.2,6.79474]
[1739471694093,0.7839,2635.7,2635.0,4.2575963]
[1739471694608,3.79441,2635.5,2635.0,8.0525963]
[1739471694772,3.79428,2635.6,2635.1,1.18476963]
[1739471695003,3.84171057,2635.6,2635.1,1.18476963]
[1739471695386,3.79445,2635.5,2635.1,1.18476963]
[1739471696003,3.79434,2635.5,2635.1,1.18476963]
[1739471696187,3.79452,2635.4,2635.1,1.18476963]
[1739471696383,4.57806,2635.7,2635.2,7.66905096]
[1739471696589,0.7839,2635.7,2635.4,3.79442]
[1739471696923,3.79423,2635.6,2635.2,0.87433096]
[1739471697135,3.79423,2635.6,2635.2,3.87433096]
[1739471697624,3.79441,2635.5,2635.2,0.87433096]
[1739471697796,3.79441,2635.5,2635.0,7.55855]
[1739471698194,0.11332452,2635.4,2635.0,7.55855]
[1739471698492,0.11332452,2635.4,2635.0,3.7635]
[1739471698701,2.0,2635.5,2634.9,3.0]
[1739471698917,3.7948,2635.2,2634.9,3.0]
[1739471699210,3.79502,2635.1,2634.7,0.7554]
[1739471699405,3.79502,2635.1,2634.7,3.7554]
[1739471699406,3.79508,2635.0,2634.7,3.7554]
[1739471699723,3.79528,2634.9,2634.4,4.55121]
[1739471700023,3.79536,2634.8,2634.3,3.79607]
[1739471700226,3.7955,2634.7,2634.2,0.7554]
[1739471700436,0.1612599,2634.9,2634.2,0.7554]
[1739471700437,0.7522,2634.8,2634.4,3.0]
[1739471700731,0.7522,2634.8,2634.5,3.79578]
[1739471700872,0.11328353,2634.7,2634.5,3.79578]
[1739471701223,4.55474,2635.1,2634.4,3.0]
[1739471701224,3.79524,2634.9,2634.4,3.0]
[1739471701526,0.7597,2635.1,2634.4,3.75515]
[1739471701527,0.7522,2635.1,2634.4,3.75515]
[1739471701740,0.11327533,2635.0,2634.8,3.79524]
[1739471702098,0.11327533,2635.0,2634.7,3.79549]
[1739471702846,0.11327533,2635.0,2634.8,3.79528]
[1739471703049,0.11327533,2635.0,2634.9,3.79521]
[1739471703418,2.0,2635.2,2634.8,3.79528]
[1739471703617,0.11329173,2635.0,2634.8,3.79528]
[1739471703862,5.32,2635.1,2634.7,3.8022]
[1739471704165,9.11494,2635.1,2634.7,3.8022]
[1739471704318,0.11329173,2635.0,2634.7,3.8022]
[1739471704520,0.11329173,2635.0,2634.7,7.59769]
[1739471704968,0.11329173,2635.0,2634.9,3.79521]
[1739471705472,0.11329173,2635.0,2634.8,3.79533]
[1739471705821,0.11329173,2635.0,2634.9,3.79521]
[1739471706794,0.11329173,2635.0,2634.9,7.934484]
[1739471707264,5.32,2635.1,2635.0,6.79506]
[1739471707464,5.32,2635.1,2634.9,3.0]
[1739471707989,9.11493,2635.1,2634.7,3.0]
[1739471708195,5.32,2635.1,2634.7,3.0]
[1739471708404,5.32,2635.1,2634.7,6.79538]
[1739471708558,3.79528,2634.9,2634.5,0.806]
[1739471708953,0.99366686,2635.0,2634.2,4.55694]
[1739471708954,3.79556,2634.7,2634.2,4.55694]
[1739471709152,8.1246,2634.7,2633.9,0.7642]
[1739471709496,3.79614,2634.3,2633.8,2.54167228]
[1739471709739,4.55519,2634.2,2633.8,2.54167228]
[1739471709853,0.7589,2634.2,2633.9,3.0]
[1739471710449,4.55519,2634.2,2633.9,3.0]
[1739471710689,0.7589,2634.2,2633.9,3.0]
[1739471711399,0.789,2634.5,2634.1,3.79636]
[1739471711583,5.705406,2634.5,2633.9,6.79656]
[1739471711983,5.705406,2634.5,2633.9,10.59311]
[1739471712171,5.705406,2634.5,2634.0,3.7965]
[1739471712378,5.705406,2634.5,2633.9,6.79655]
[1739471712579,3.79593,2634.4,2633.9,6.79655]
[1739471712783,1.909546,2634.5,2634.0,3.79636]
[1739471713312,0.11275074,2634.4,2634.1,3.79636]
[1739471713528,0.11275074,2634.4,2634.2,3.7962]
[1739471713956,0.11275074,2634.4,2634.3,3.79607]
[1739471714157,0.8032,2634.8,2634.5,3.79577]
[1739471714415,0.11277534,2634.7,2634.5,3.79577]
[1739471714613,0.11277534,2634.7,2634.6,6.79564]
[1739471714763,2.0,2635.0,2634.7,3.79544]
[1739471715113,0.39398534,2634.9,2634.7,3.79541]
[1739471715310,0.11277534,2634.9,2634.8,3.79535]
[1739471715714,5.32,2635.2,2635.1,3.79492]
[1739471715918,5.32,2635.3,2635.1,3.79492]
[1739471716070,5.32,2635.3,2635.0,3.79503]
[1739471716671,5.32,2635.3,2635.0,3.79497]
[1739471716915,6.1321,2635.4,2634.8,3.0]
[1739471717217,6.1321,2635.4,2635.1,3.79485]
[1739471718666,6.1321,2635.4,2635.2,3.79466]
[1739471718866,5.32,2635.4,2635.0,3.79493]
[1739471719066,5.32,2635.4,2635.1,3.0]
[1739471719499,0.047434,2635.3,2634.8,6.79526]
[1739471719716,5.32,2635.4,2635.0,3.0]
[1739471719913,9.11451,2635.4,2635.0,3.0]
[1739471721813,4.33143758,2635.3,2634.7,0.7812]
[1739471721983,4.33143758,2635.3,2634.5,3.79567]
[1739471721984,3.79506,2635.0,2634.5,3.79567]
[1739471722324,5.32,2634.9,2634.6,3.0]
[1739471722603,5.32,2634.9,2634.4,0.8178]
[1739471722806,0.7978,2634.7,2634.3,3.79596]
[1739471723163,5.32,2634.9,2634.8,3.79535]
[1739471723363,5.32,2634.9,2634.8,4.61315]
[1739471723822,5.429059,2634.9,2634.8,4.61315]
[1739471723987,5.429059,2634.9,2634.8,5.454012]
[1739471724501,5.429059,2634.9,2634.8,4.61315]
[1739471725359,5.429059,2634.9,2634.8,7.61315]
[1739471726256,9e-06,2634.9,2634.8,8.16315]
[1739471726570,0.7978,2635.7,2634.9,3.0]
[1739471726741,0.10522184,2635.6,2635.3,3.7946]
[1739471727141,0.10522184,2635.6,2635.4,3.79447]
[1739471727664,0.10522184,2635.6,2635.3,3.79458]
[1739471728228,0.10522184,2635.6,2635.4,3.79448]
[1739471728429,0.10522184,2635.6,2635.5,3.79434]
[1739471728637,0.10522184,2635.6,2634.9,6.79518]
[1739471728638,0.10522184,2635.6,2635.3,3.79452]
[1739471729356,0.10522184,2635.6,2635.0,3.79495]
[1739471729357,0.10522184,2635.6,2635.1,6.79478]
[1739471729684,3.89943184,2635.6,2635.2,1.058973]
[1739471730338,3.89943184,2635.6,2635.2,4.853713]
[1739471730786,0.10522184,2635.6,2635.2,4.853713]
[1739471730972,0.10522184,2635.6,2635.3,3.79452]
[1739471731745,0.10522184,2635.6,2635.2,4.853743]
[1739471731942,3.89943184,2635.6,2635.2,4.853743]
[1739471732139,3.89943184,2635.6,2635.2,1.058973]
[1739471732493,4.38922184,2635.6,2635.0,3.79503]
[1739471732700,8.25853236,2635.6,2635.2,3.7947]
[1739471733528,4.46433236,2635.6,2634.8,7.61312]
[1739471733733,5.32,2635.5,2635.4,3.79449]
[1739471734215,5.50033237,2635.5,2635.4,3.79449]
[1739471734724,5.50033237,2635.5,2635.3,3.79461]
[1739471734928,5.50033237,2635.5,2635.2,3.0]
[1739471735627,5.50033237,2635.5,2634.8,0.8178]
[1739471735628,3.79478,2635.2,2634.8,4.61313]
[1739471735841,4.56068,2635.2,2634.8,4.61313]
[1739471736136,0.1810959,2635.1,2635.0,3.79506]
[1739471736728,0.1810959,2635.1,2634.9,6.79512]
[1739471736899,9.88046,2635.4,2634.9,6.79512]
[1739471737097,0.18098097,2635.0,2634.9,6.79512]
[1739471737335,3.79466,2635.3,2634.9,6.79512]
[1739471737538,0.18098097,2635.0,2634.9,6.79512]
[1739471737745,0.18098097,2635.0,2634.8,0.8178]
[1739471737746,11.1148,2635.2,2634.8,3.0]
[1739471738038,11.1148,2635.2,2633.9,0.7836]
[1739471738039,3.79551,2634.7,2633.9,0.7836]
[1739471738182,0.04744914,2634.6,2634.3,3.79599]
[1739471738382,4.64948897,2634.7,2634.2,3.79621]
[1739471738582,0.18082498,2634.6,2634.2,3.79621]
[1739471738828,3.79585,2634.5,2633.9,4.58011]
[1739471739025,3.84330283,2634.5,2633.9,4.58011]
[1739471739209,3.84330283,2634.5,2634.1,3.0]
[1739471739397,3.97628401,2634.4,2633.9,4.58011]
[1739471739597,0.22777674,2634.4,2634.0,3.79647]
[1739471739931,0.18032401,2634.4,2634.2,3.79615]
[1739471740131,0.18032401,2634.4,2634.3,3.79607]
[1739471740332,3.0905,2634.7,2634.4,3.79588]
[1739471740799,3.0905,2634.7,2634.5,3.79578]
[1739471741005,6.0888,2634.9,2634.1,3.8073]
[1739471741187,5.32,2634.9,2634.8,3.79535]
[1739471741618,0.7688,2635.3,2634.8,3.79535]